[Event "Live Chess"]
[Site "Chess.com"]
[Date "2023.05.20"]
[Round "-"]
[White "mliszewski"]
[Black "CheckThis4"]
[Result "0-1"]
[WhiteElo "1862"]
[BlackElo "2549"]
[TimeControl "300"]
[EndTime "13:49:52 PDT"]
[Termination "CheckThis4 won by resignation"]

1. d4 {[%clk 0:04:59.1]} 1... Nf6 {[%clk 0:04:57.7]} 2. Bg5 {[%clk 0:04:57.4]}
2... d5 {[%clk 0:04:43.7]} 3. Bxf6 {[%clk 0:04:53.3]} 3... exf6 {[%clk
0:04:42.4]} 4. e3 {[%clk 0:04:52.9]} 4... c6 {[%clk 0:04:41.8]} 5. c4 {[%clk
0:04:49.8]} 5... dxc4 {[%clk 0:04:39.1]} 6. Bxc4 {[%clk 0:04:47.6]} 6... Bd6
{[%clk 0:04:38.5]} 7. Nf3 {[%clk 0:04:46.2]} 7... O-O {[%clk 0:04:36.5]} 8. O-O
{[%clk 0:04:45.8]} 8... Nd7 {[%clk 0:04:29.4]} 9. Nc3 {[%clk 0:04:43.3]} 9...
Qe7 {[%clk 0:04:20.1]} 10. a3 {[%clk 0:04:40.2]} 10... f5 {[%clk 0:04:19.5]} 11.
Rc1 {[%clk 0:04:32.2]} 11... Nf6 {[%clk 0:04:18.4]} 12. b4 {[%clk 0:04:30.2]}
12... a5 {[%clk 0:04:14]} 13. b5 {[%clk 0:04:23.7]} 13... Bxa3 {[%clk 0:04:13]}
14. Rb1 {[%clk 0:04:19.6]} 14... Bb4 {[%clk 0:04:12.3]} 15. bxc6 {[%clk
0:04:18]} 15... Bxc3 {[%clk 0:04:08.3]} 16. cxb7 {[%clk 0:04:17.2]} 16... Bxb7
{[%clk 0:04:07.6]} 17. Ne5 {[%clk 0:04:06]} 17... Bb4 {[%clk 0:04:06.1]} 18. Qc2
{[%clk 0:04:00.3]} 18... Be4 {[%clk 0:04:02.6]} 19. Bd3 {[%clk 0:03:59.4]} 19...
Rac8 {[%clk 0:03:59.3]} 20. Qb3 {[%clk 0:03:57]} 20... Bxd3 {[%clk 0:03:56.5]}
21. Qxd3 {[%clk 0:03:55.3]} 21... g6 {[%clk 0:03:54]} 22. Rfc1 {[%clk
0:03:49.2]} 22... Ne4 {[%clk 0:03:51.1]} 23. Nc6 {[%clk 0:03:42.9]} 23... Qd6
{[%clk 0:03:46.2]} 24. Nxb4 {[%clk 0:03:40.7]} 24... axb4 {[%clk 0:03:44.8]} 25.
f3 {[%clk 0:03:29.7]} 25... Nc3 {[%clk 0:03:41.3]} 26. Rb3 {[%clk 0:03:27.8]}
26... Nd5 {[%clk 0:03:39]} 27. e4 {[%clk 0:03:22.9]} 27... Rxc1+ {[%clk
0:03:36.5]} 0-1

[Event "Live Chess"]
[Site "Chess.com"]
[Date "2023.05.20"]
[Round "-"]
[White "Conradical12"]
[Black "friarnator"]
[Result "0-1"]
[WhiteElo "1569"]
[BlackElo "1991"]
[TimeControl "300"]
[EndTime "13:49:53 PDT"]
[Termination "friarnator won by resignation"]

1. e4 {[%clk 0:04:57.5]} 1... Nf6 {[%clk 0:04:54]} 2. d4 {[%clk 0:04:54.2]} 2...
Nxe4 {[%clk 0:04:52.7]} 3. Nf3 {[%clk 0:04:50.7]} 3... d6 {[%clk 0:04:50.6]} 4.
Bc4 {[%clk 0:04:49.5]} 4... d5 {[%clk 0:04:42.5]} 5. Bd3 {[%clk 0:04:47.5]} 5...
Bg4 {[%clk 0:04:41]} 6. O-O {[%clk 0:04:44.5]} 6... Nf6 {[%clk 0:04:40.2]} 7.
Nbd2 {[%clk 0:04:42.5]} 7... e6 {[%clk 0:04:39.4]} 8. c3 {[%clk 0:04:42]} 8...
Bd6 {[%clk 0:04:37.8]} 9. Re1 {[%clk 0:04:41.6]} 9... O-O {[%clk 0:04:37.1]} 10.
Qc2 {[%clk 0:04:41.1]} 10... h6 {[%clk 0:04:35.8]} 11. Ne5 {[%clk 0:04:35.1]}
11... Bh5 {[%clk 0:03:50.6]} 12. Re3 {[%clk 0:04:26.9]} 12... Nbd7 {[%clk
0:03:46.4]} 13. Rg3 {[%clk 0:04:25.5]} 13... Bxe5 {[%clk 0:03:42.8]} 14. dxe5
{[%clk 0:04:23.5]} 14... Nxe5 {[%clk 0:03:42.7]} 15. Nf3 {[%clk 0:04:10.7]}
15... Nxd3 {[%clk 0:03:25.3]} 16. Qxd3 {[%clk 0:04:08.3]} 16... Bg6 {[%clk
0:03:25.2]} 17. Qe2 {[%clk 0:04:03.1]} 17... c5 {[%clk 0:03:19.2]} 18. Ne5
{[%clk 0:04:00.7]} 18... Bh7 {[%clk 0:03:15.8]} 19. Bxh6 {[%clk 0:03:58]} 19...
Ne8 {[%clk 0:02:23.9]} 20. Qg4 {[%clk 0:03:50.9]} 20... Qf6 {[%clk 0:02:22]} 21.
Nd7 {[%clk 0:03:45]} 21... Qxh6 {[%clk 0:02:16.5]} 22. Nxf8 {[%clk 0:03:43.5]}
22... Kxf8 {[%clk 0:02:16.4]} 23. Rh3 {[%clk 0:03:36.3]} 23... Bf5 {[%clk
0:02:08.6]} 24. Rxh6 {[%clk 0:03:24.5]} 24... Bxg4 {[%clk 0:02:07.4]} 25. Rh8+
{[%clk 0:03:20]} 25... Ke7 {[%clk 0:02:06.3]} 26. f3 {[%clk 0:03:18.9]} 26...
Bf5 {[%clk 0:02:04.3]} 27. h4 {[%clk 0:03:15.2]} 27... Nc7 {[%clk 0:02:01.5]}
28. Rh5 {[%clk 0:02:59.8]} 28... f6 {[%clk 0:01:44.4]} 29. Rxf5 {[%clk
0:02:42.1]} 29... exf5 {[%clk 0:01:44.3]} 0-1

[Event "Live Chess"]
[Site "Chess.com"]
[Date "2023.05.20"]
[Round "-"]
[White "KeithArkell"]
[Black "hturner40"]
[Result "1-0"]
[WhiteElo "2615"]
[BlackElo "1787"]
[TimeControl "300"]
[EndTime "13:49:57 PDT"]
[Termination "KeithArkell won on time"]

1. d4 {[%clk 0:04:58.2]} 1... Nc6 {[%clk 0:04:48.8]} 2. Nf3 {[%clk 0:04:57.2]}
2... d6 {[%clk 0:04:45.4]} 3. d5 {[%clk 0:04:56.2]} 3... Nb8 {[%clk 0:04:43.7]}
4. e4 {[%clk 0:04:54.9]} 4... Nf6 {[%clk 0:04:42.7]} 5. Nc3 {[%clk 0:04:53.2]}
5... g6 {[%clk 0:04:40.6]} 6. h3 {[%clk 0:04:52]} 6... Bg7 {[%clk 0:04:39.5]} 7.
Bc4 {[%clk 0:04:50.8]} 7... O-O {[%clk 0:04:37.7]} 8. O-O {[%clk 0:04:50]} 8...
a6 {[%clk 0:04:34.6]} 9. a4 {[%clk 0:04:48.6]} 9... Nbd7 {[%clk 0:04:32.8]} 10.
a5 {[%clk 0:04:46.9]} 10... Nc5 {[%clk 0:04:30.8]} 11. Re1 {[%clk 0:04:46.1]}
11... Nfd7 {[%clk 0:04:27.3]} 12. Bf4 {[%clk 0:04:43.9]} 12... b5 {[%clk
0:04:19]} 13. axb6 {[%clk 0:04:42.6]} 13... cxb6 {[%clk 0:04:11.4]} 14. Nd4
{[%clk 0:04:39.6]} 14... Re8 {[%clk 0:03:21.1]} 15. b4 {[%clk 0:04:33.6]} 15...
Nb7 {[%clk 0:03:19.1]} 16. Ra3 {[%clk 0:04:29]} 16... Qc7 {[%clk 0:03:16.6]} 17.
Nc6 {[%clk 0:04:27.8]} 17... Nb8 {[%clk 0:03:11.4]} 18. b5 {[%clk 0:04:23.5]}
18... a5 {[%clk 0:02:57.2]} 19. e5 {[%clk 0:03:39.6]} 19... Bd7 {[%clk
0:02:27.1]} 20. exd6 {[%clk 0:03:35.9]} 20... exd6 {[%clk 0:02:17.4]} 21. Rxe8+
{[%clk 0:03:34.8]} 21... Bxe8 {[%clk 0:02:15.9]} 22. Ne4 {[%clk 0:03:30]} 22...
Nd7 {[%clk 0:01:53.3]} 23. Qd2 {[%clk 0:03:13.1]} 23... Ndc5 {[%clk 0:01:40.1]}
24. Nxc5 {[%clk 0:03:12.1]} 24... Nxc5 {[%clk 0:01:38.2]} 25. Re3 {[%clk
0:03:11.1]} 25... Bxc6 {[%clk 0:01:15.9]} 26. dxc6 {[%clk 0:03:07.1]} 26... Be5
{[%clk 0:01:10.6]} 27. Bxe5 {[%clk 0:03:03.2]} 27... dxe5 {[%clk 0:01:09.5]} 28.
Qd5 {[%clk 0:02:59.7]} 28... Re8 {[%clk 0:01:00.5]} 29. f4 {[%clk 0:02:56.9]}
29... e4 {[%clk 0:00:43.9]} 30. g3 {[%clk 0:02:38.9]} 30... Rd8 {[%clk
0:00:31.1]} 31. Qe5 {[%clk 0:02:38]} 31... Qxe5 {[%clk 0:00:23.4]} 32. fxe5
{[%clk 0:02:37.9]} 32... Rd1+ {[%clk 0:00:21.1]} 33. Kf2 {[%clk 0:02:35.8]}
33... Rd2+ {[%clk 0:00:20.1]} 34. Re2 {[%clk 0:02:34.8]} 34... Rd4 {[%clk
0:00:14.4]} 35. c7 {[%clk 0:02:32.3]} 1-0

[Event "Live Chess"]
[Site "Chess.com"]
[Date "2023.05.20"]
[Round "-"]
[White "BostonStrangler"]
[Black "stevefairhurst"]
[Result "1-0"]
[WhiteElo "2054"]
[BlackElo "585"]
[TimeControl "300"]
[EndTime "13:50:01 PDT"]
[Termination "BostonStrangler won by checkmate"]

1. Nf3 {[%clk 0:04:57.8]} 1... d6 {[%clk 0:04:57.5]} 2. g3 {[%clk 0:04:55.2]}
2... e5 {[%clk 0:04:56.4]} 3. Bg2 {[%clk 0:04:53.8]} 3... c5 {[%clk 0:04:55.5]}
4. O-O {[%clk 0:04:51.3]} 4... Qa5 {[%clk 0:04:47.5]} 5. c4 {[%clk 0:04:49]}
5... Be6 {[%clk 0:04:44.1]} 6. d3 {[%clk 0:04:46.3]} 6... Nc6 {[%clk 0:04:37.6]}
7. Nc3 {[%clk 0:04:44.7]} 7... O-O-O {[%clk 0:04:32.6]} 8. a3 {[%clk 0:04:42.3]}
8... Be7 {[%clk 0:04:31]} 9. Bd2 {[%clk 0:04:38.8]} 9... Nf6 {[%clk 0:04:29.7]}
10. b4 {[%clk 0:04:37.6]} 10... Qc7 {[%clk 0:04:22.5]} 11. Nb5 {[%clk
0:04:30.8]} 11... Qd7 {[%clk 0:04:17.5]} 12. bxc5 {[%clk 0:04:19.3]} 12... a6
{[%clk 0:04:10.1]} 13. Rb1 {[%clk 0:04:19.2]} 13... axb5 {[%clk 0:04:02.5]} 14.
cxb5 {[%clk 0:04:18]} 14... Nd4 {[%clk 0:03:57.7]} 15. Nxd4 {[%clk 0:04:14.1]}
15... exd4 {[%clk 0:03:56.3]} 16. c6 {[%clk 0:04:13.3]} 16... bxc6 {[%clk
0:03:51.3]} 17. bxc6 {[%clk 0:04:11.7]} 17... Qc7 {[%clk 0:03:50]} 18. Rb7
{[%clk 0:04:06.7]} 18... Bd5 {[%clk 0:03:37]} 19. Rxc7+ {[%clk 0:04:02.8]} 19...
Kxc7 {[%clk 0:03:35.8]} 20. Ba5+ {[%clk 0:04:02.4]} 20... Kxc6 {[%clk
0:03:34.1]} 21. Qa4+ {[%clk 0:04:01]} 21... Kb7 {[%clk 0:03:29.1]} 22. Rb1+
{[%clk 0:03:59.7]} 22... Kc8 {[%clk 0:03:26.3]} 23. Bxd5 {[%clk 0:03:58.1]}
23... Rd7 {[%clk 0:03:24.8]} 24. Qc6+ {[%clk 0:03:56.7]} 24... Rc7 {[%clk
0:03:13.1]} 25. Qxc7# {[%clk 0:03:55.6]} 1-0

[Event "Live Chess"]
[Site "Chess.com"]
[Date "2023.05.20"]
[Round "-"]
[White "Doge_Dandolo"]
[Black "chrisbradgate"]
[Result "1-0"]
[WhiteElo "2008"]
[BlackElo "847"]
[TimeControl "300"]
[EndTime "13:50:07 PDT"]
[Termination "Doge_Dandolo won by checkmate"]

1. Nf3 {[%clk 0:04:59.2]} 1... d5 {[%clk 0:04:57.4]} 2. c4 {[%clk 0:04:57.9]}
2... dxc4 {[%clk 0:04:56.2]} 3. e3 {[%clk 0:04:56.5]} 3... Nc6 {[%clk
0:04:55.3]} 4. Bxc4 {[%clk 0:04:55.4]} 4... h6 {[%clk 0:04:53.9]} 5. d4 {[%clk
0:04:51.8]} 5... Nf6 {[%clk 0:04:52.2]} 6. O-O {[%clk 0:04:50.3]} 6... Bg4
{[%clk 0:04:50.2]} 7. Nbd2 {[%clk 0:04:42.1]} 7... Qd7 {[%clk 0:04:48.8]} 8. Qb3
{[%clk 0:04:38.3]} 8... O-O-O {[%clk 0:04:45.7]} 9. Bb5 {[%clk 0:04:24]} 9... a6
{[%clk 0:04:42.9]} 10. Bxc6 {[%clk 0:04:20.1]} 10... Qxc6 {[%clk 0:04:37.8]} 11.
Ne5 {[%clk 0:04:18]} 11... Be6 {[%clk 0:03:48.1]} 12. Nxc6 {[%clk 0:04:13.4]}
12... Bxb3 {[%clk 0:03:44.9]} 13. Nxd8 {[%clk 0:04:11.4]} 13... Kxd8 {[%clk
0:03:44.3]} 14. axb3 {[%clk 0:04:08.3]} 14... Kc8 {[%clk 0:03:41.9]} 15. Nc4
{[%clk 0:04:07.1]} 15... e6 {[%clk 0:03:34.6]} 16. Bd2 {[%clk 0:04:04.6]} 16...
Nd5 {[%clk 0:03:27.3]} 17. Ne5 {[%clk 0:04:02.6]} 17... f6 {[%clk 0:03:20.3]}
18. Nd3 {[%clk 0:03:59.4]} 18... Bd6 {[%clk 0:03:14.2]} 19. Rfc1 {[%clk
0:03:56.6]} 19... e5 {[%clk 0:03:05.9]} 20. dxe5 {[%clk 0:03:54.1]} 20... fxe5
{[%clk 0:03:04.9]} 21. e4 {[%clk 0:03:52.4]} 21... Nf6 {[%clk 0:03:01.6]} 22. f3
{[%clk 0:03:50.3]} 22... Rf8 {[%clk 0:02:56.1]} 23. Be3 {[%clk 0:03:47.4]} 23...
g5 {[%clk 0:02:50.9]} 24. Ra4 {[%clk 0:03:33.4]} 24... Nd7 {[%clk 0:02:38.1]}
25. Rac4 {[%clk 0:03:27.2]} 25... c6 {[%clk 0:02:34.8]} 26. Rd1 {[%clk
0:03:22.7]} 26... Be7 {[%clk 0:02:21.9]} 27. Nc5 {[%clk 0:03:14.8]} 27... Nxc5
{[%clk 0:02:20.6]} 28. Bxc5 {[%clk 0:03:12.7]} 28... Bxc5+ {[%clk 0:02:18]} 29.
Rxc5 {[%clk 0:03:11.7]} 29... Kc7 {[%clk 0:02:12]} 30. Rxe5 {[%clk 0:03:09.8]}
30... Rg8 {[%clk 0:01:59.7]} 31. Kf2 {[%clk 0:03:04.9]} 31... Rf8 {[%clk
0:01:51.1]} 32. Kg3 {[%clk 0:03:02.7]} 32... Rg8 {[%clk 0:01:44.3]} 33. h3
{[%clk 0:02:57.2]} 33... h5 {[%clk 0:01:42.6]} 34. Rd4 {[%clk 0:02:51.8]} 34...
Kb6 {[%clk 0:01:28.2]} 35. Rd7 {[%clk 0:02:49.9]} 35... Rg6 {[%clk 0:01:17.6]}
36. Rh7 {[%clk 0:02:47.1]} 36... h4+ {[%clk 0:01:15.4]} 37. Kg4 {[%clk
0:02:46.3]} 37... Rd6 {[%clk 0:01:12.5]} 38. Rxg5 {[%clk 0:02:44.2]} 38... Rd2
{[%clk 0:01:11.4]} 39. Kf5 {[%clk 0:02:41.7]} 39... Rxb2 {[%clk 0:01:08.5]} 40.
Rgg7 {[%clk 0:02:40.1]} 40... Ka5 {[%clk 0:01:00.8]} 41. e5 {[%clk 0:02:34.6]}
41... Rxb3 {[%clk 0:00:50.4]} 42. Rxb7 {[%clk 0:02:31.3]} 42... Re3 {[%clk
0:00:43.7]} 43. e6 {[%clk 0:02:29.2]} 43... c5 {[%clk 0:00:40]} 44. e7 {[%clk
0:02:26.7]} 44... c4 {[%clk 0:00:38.8]} 45. Rb8 {[%clk 0:02:24.9]} 45... c3
{[%clk 0:00:35]} 46. e8=Q {[%clk 0:02:22.7]} 46... Rxe8 {[%clk 0:00:33.9]} 47.
Rxe8 {[%clk 0:02:21.3]} 47... c2 {[%clk 0:00:33.8]} 48. Rc8 {[%clk 0:02:19.9]}
48... Kb6 {[%clk 0:00:31]} 49. Rxh4 {[%clk 0:02:18.6]} 49... a5 {[%clk 0:00:30]}
50. Rhc4 {[%clk 0:02:17.3]} 50... Kb5 {[%clk 0:00:27.1]} 51. Rxc2 {[%clk
0:02:16]} 51... a4 {[%clk 0:00:25.6]} 52. Rb8+ {[%clk 0:02:13.1]} 52... Ka5
{[%clk 0:00:23.3]} 53. h4 {[%clk 0:02:07.3]} 53... a3 {[%clk 0:00:20.2]} 54. h5
{[%clk 0:02:06.1]} 54... Ka4 {[%clk 0:00:19.3]} 55. h6 {[%clk 0:02:04.8]} 55...
a2 {[%clk 0:00:16.2]} 56. Rxa2# {[%clk 0:02:03]} 1-0

[Event "Live Chess"]
[Site "Chess.com"]
[Date "2023.05.20"]
[Round "-"]
[White "blunderabit"]
[Black "lordjimvi"]
[Result "1-0"]
[WhiteElo "1844"]
[BlackElo "391"]
[TimeControl "300"]
[EndTime "13:50:22 PDT"]
[Termination "blunderabit won by resignation"]

1. e4 {[%clk 0:04:58.3]} 1... d5 {[%clk 0:04:58.3]} 2. exd5 {[%clk 0:04:56.1]}
2... Qxd5 {[%clk 0:04:56.9]} 3. Nc3 {[%clk 0:04:53.9]} 3... Qe6+ {[%clk
0:04:55.5]} 4. Be2 {[%clk 0:04:47.9]} 4... Nc6 {[%clk 0:04:49.6]} 5. Nf3 {[%clk
0:04:45.5]} 5... f5 {[%clk 0:04:46.7]} 6. d4 {[%clk 0:04:40.5]} 6... Nf6 {[%clk
0:04:42.4]} 7. d5 {[%clk 0:04:34.1]} 7... Nxd5 {[%clk 0:04:40.1]} 8. Nxd5 {[%clk
0:04:27.7]} 8... Qd7 {[%clk 0:04:36.8]} 9. Bf4 {[%clk 0:04:20.5]} 9... e6 {[%clk
0:04:33.1]} 10. Nxc7+ {[%clk 0:04:17.3]} 10... Kf7 {[%clk 0:04:27.5]} 11. Nxa8
{[%clk 0:04:10.9]} 1-0

[Event "Live Chess"]
[Site "Chess.com"]
[Date "2023.05.20"]
[Round "-"]
[White "LiamClery2020"]
[Black "Larchikov"]
[Result "1-0"]
[WhiteElo "2091"]
[BlackElo "2007"]
[TimeControl "300"]
[EndTime "13:50:22 PDT"]
[Termination "LiamClery2020 won by resignation"]

1. e4 {[%clk 0:04:59.1]} 1... c6 {[%clk 0:04:58.7]} 2. c4 {[%clk 0:04:56.9]}
2... d5 {[%clk 0:04:57.3]} 3. cxd5 {[%clk 0:04:56.8]} 3... cxd5 {[%clk 0:04:57]}
4. exd5 {[%clk 0:04:56.7]} 4... Nf6 {[%clk 0:04:55.2]} 5. Nc3 {[%clk 0:04:55.1]}
5... Nxd5 {[%clk 0:04:53.8]} 6. Bc4 {[%clk 0:04:53.1]} 6... Nxc3 {[%clk
0:04:51.2]} 7. bxc3 {[%clk 0:04:53]} 7... e6 {[%clk 0:04:48.4]} 8. Nf3 {[%clk
0:04:52]} 8... Nc6 {[%clk 0:04:47.1]} 9. O-O {[%clk 0:04:51.4]} 9... Be7 {[%clk
0:04:46.3]} 10. d4 {[%clk 0:04:50.9]} 10... O-O {[%clk 0:04:45.4]} 11. Re1
{[%clk 0:04:50.3]} 11... a6 {[%clk 0:04:40.8]} 12. Bd3 {[%clk 0:04:47.3]} 12...
b5 {[%clk 0:04:39.2]} 13. Qe2 {[%clk 0:04:42.7]} 13... Bf6 {[%clk 0:04:31]} 14.
Qe4 {[%clk 0:04:40.3]} 14... g6 {[%clk 0:04:25.4]} 15. Qxc6 {[%clk 0:04:37.9]}
1-0

[Event "Live Chess"]
[Site "Chess.com"]
[Date "2023.05.20"]
[Round "-"]
[White "laki79"]
[Black "EdenHazard8"]
[Result "0-1"]
[WhiteElo "2166"]
[BlackElo "2068"]
[TimeControl "300"]
[EndTime "13:50:24 PDT"]
[Termination "EdenHazard8 won on time"]

1. d4 {[%clk 0:04:54.1]} 1... Nf6 {[%clk 0:04:58.9]} 2. c4 {[%clk 0:04:53]} 2...
g6 {[%clk 0:04:58]} 3. Nc3 {[%clk 0:04:52.1]} 3... Bg7 {[%clk 0:04:57.5]} 4. e4
{[%clk 0:04:51.2]} 4... d6 {[%clk 0:04:57.2]} 5. f3 {[%clk 0:04:50.5]} 5... O-O
{[%clk 0:04:56.7]} 6. Be3 {[%clk 0:04:49.5]} 6... Nbd7 {[%clk 0:04:56.3]} 7. Qd2
{[%clk 0:04:47.8]} 7... e5 {[%clk 0:04:55.9]} 8. d5 {[%clk 0:04:45.9]} 8... a5
{[%clk 0:04:54.9]} 9. Bd3 {[%clk 0:04:44.7]} 9... b6 {[%clk 0:04:54.5]} 10.
O-O-O {[%clk 0:04:42.3]} 10... Nc5 {[%clk 0:04:53.9]} 11. Bc2 {[%clk 0:04:40.8]}
11... Ne8 {[%clk 0:04:51.9]} 12. Nge2 {[%clk 0:04:39.1]} 12... f5 {[%clk
0:04:50.5]} 13. Kb1 {[%clk 0:04:37.6]} 13... f4 {[%clk 0:04:49.3]} 14. Bf2
{[%clk 0:04:36.6]} 14... Nf6 {[%clk 0:04:48.1]} 15. Nc1 {[%clk 0:04:29.9]} 15...
a4 {[%clk 0:04:46.1]} 16. b4 {[%clk 0:04:25.1]} 16... axb3 {[%clk 0:04:41.4]}
17. axb3 {[%clk 0:04:23.7]} 17... Bd7 {[%clk 0:04:39.2]} 18. Kb2 {[%clk
0:04:22.1]} 18... Qc8 {[%clk 0:04:37.4]} 19. b4 {[%clk 0:04:10.3]} 19... Qa6
{[%clk 0:04:34]} 20. N1a2 {[%clk 0:03:24.1]} 20... Qa3+ {[%clk 0:04:27.6]} 21.
Kb1 {[%clk 0:03:13.7]} 21... Nb3 {[%clk 0:04:25.1]} 22. Bxb3 {[%clk 0:01:57.1]}
22... Qxb3+ {[%clk 0:04:25]} 23. Qb2 {[%clk 0:01:54.9]} 23... Qxc4 {[%clk
0:04:24.9]} 24. Rc1 {[%clk 0:01:52.2]} 24... Qd3+ {[%clk 0:04:22.2]} 25. Qc2
{[%clk 0:01:50.2]} 25... Qc4 {[%clk 0:04:18.5]} 26. Rhd1 {[%clk 0:01:40]} 26...
Ra3 {[%clk 0:04:15.5]} 27. Rd2 {[%clk 0:01:35]} 27... Rfa8 {[%clk 0:04:10.6]}
28. Qd3 {[%clk 0:01:29.1]} 28... Rb3+ {[%clk 0:04:06.9]} 29. Ka1 {[%clk
0:01:20]} 29... Qxb4 {[%clk 0:04:05.5]} 30. Rb1 {[%clk 0:01:10]} 30... Rxb1+
{[%clk 0:04:02.5]} 31. Nxb1 {[%clk 0:01:05]} 31... Bb5 {[%clk 0:03:49.6]} 32.
Qc3 {[%clk 0:00:59]} 32... Qxc3+ {[%clk 0:03:47.2]} 33. Nxc3 {[%clk 0:00:57.6]}
33... Bc4 {[%clk 0:03:46.3]} 34. Kb1 {[%clk 0:00:56.2]} 34... Nd7 {[%clk
0:03:42.4]} 35. Nb4 {[%clk 0:00:52.8]} 35... Nc5 {[%clk 0:03:28.1]} 36. Bxc5
{[%clk 0:00:51.5]} 36... bxc5 {[%clk 0:03:28]} 37. Nc6 {[%clk 0:00:50.2]} 37...
g5 {[%clk 0:03:20.3]} 38. Rb2 {[%clk 0:00:48.2]} 38... Bf6 {[%clk 0:03:06.4]}
39. Nb5 {[%clk 0:00:42.1]} 39... Bxb5 {[%clk 0:02:53]} 40. Rxb5 {[%clk 0:00:42]}
40... Bd8 {[%clk 0:02:52.3]} 41. Rb7 {[%clk 0:00:39.7]} 41... h5 {[%clk
0:02:48.1]} 42. Nxd8 {[%clk 0:00:38]} 42... Rxd8 {[%clk 0:02:47.4]} 43. Rxc7
{[%clk 0:00:37.4]} 43... Rb8+ {[%clk 0:02:45.9]} 44. Kc2 {[%clk 0:00:36]} 44...
Ra8 {[%clk 0:02:45]} 45. Kb2 {[%clk 0:00:34.7]} 45... Rd8 {[%clk 0:02:36.1]} 46.
Re7 {[%clk 0:00:28.9]} 46... Kf8 {[%clk 0:02:29.9]} 47. Rh7 {[%clk 0:00:27.3]}
47... h4 {[%clk 0:02:28.9]} 48. Rh5 {[%clk 0:00:26.3]} 48... Kf7 {[%clk
0:02:25.8]} 49. Rxg5 {[%clk 0:00:25.5]} 49... Kf6 {[%clk 0:02:25.5]} 50. Rh5
{[%clk 0:00:24.5]} 50... Rg8 {[%clk 0:02:24.3]} 51. Rxh4 {[%clk 0:00:19.4]}
51... Rxg2+ {[%clk 0:02:22.7]} 52. Kc3 {[%clk 0:00:19.3]} 52... Rf2 {[%clk
0:02:21.7]} 53. Rh6+ {[%clk 0:00:17.3]} 53... Ke7 {[%clk 0:02:20.7]} 54. Rh7+
{[%clk 0:00:16.2]} 54... Kd8 {[%clk 0:02:20.2]} 55. Rh6 {[%clk 0:00:14.6]} 55...
Rxf3+ {[%clk 0:02:19.1]} 56. Kc4 {[%clk 0:00:12.5]} 56... Kc7 {[%clk 0:02:17.2]}
57. Rh7+ {[%clk 0:00:11.7]} 57... Kb6 {[%clk 0:02:16.4]} 58. Rh6 {[%clk
0:00:11]} 58... Re3 {[%clk 0:02:12.4]} 59. Rxd6+ {[%clk 0:00:09.4]} 59... Kc7
{[%clk 0:02:12]} 60. Re6 {[%clk 0:00:07.6]} 60... Rxe4+ {[%clk 0:02:11.1]} 61.
Kxc5 {[%clk 0:00:07.2]} 61... f3 {[%clk 0:02:10]} 62. Re7+ {[%clk 0:00:05.8]}
62... Kd8 {[%clk 0:02:08.8]} 63. Rf7 {[%clk 0:00:04.9]} 63... Rf4 {[%clk
0:02:07.8]} 64. Rh7 {[%clk 0:00:00.5]} 64... f2 {[%clk 0:02:06.3]} 0-1

[Event "Live Chess"]
[Site "Chess.com"]
[Date "2023.05.20"]
[Round "-"]
[White "gmnorfolk"]
[Black "Supertromp"]
[Result "1-0"]
[WhiteElo "2116"]
[BlackElo "2181"]
[TimeControl "300"]
[EndTime "13:50:29 PDT"]
[Termination "gmnorfolk won by resignation"]

1. d4 {[%clk 0:04:57.5]} 1... Nf6 {[%clk 0:04:58.7]} 2. c4 {[%clk 0:04:55.7]}
2... g6 {[%clk 0:04:57.6]} 3. Nc3 {[%clk 0:04:55.1]} 3... Bg7 {[%clk 0:04:57]}
4. e4 {[%clk 0:04:53.4]} 4... d6 {[%clk 0:04:56.6]} 5. Be2 {[%clk 0:04:52.9]}
5... O-O {[%clk 0:04:55.6]} 6. Be3 {[%clk 0:04:52.3]} 6... e5 {[%clk 0:04:53]}
7. d5 {[%clk 0:04:51.1]} 7... a5 {[%clk 0:04:42.5]} 8. h4 {[%clk 0:04:48.6]}
8... h6 {[%clk 0:04:38.8]} 9. h5 {[%clk 0:04:46.7]} 9... g5 {[%clk 0:04:37.8]}
10. Qd2 {[%clk 0:04:43.2]} 10... Nh7 {[%clk 0:04:34.9]} 11. g4 {[%clk 0:04:40]}
11... Na6 {[%clk 0:04:23.2]} 12. O-O-O {[%clk 0:04:24.9]} 12... Bd7 {[%clk
0:04:10.9]} 13. f3 {[%clk 0:04:20.4]} 13... a4 {[%clk 0:03:52.8]} 14. Nh3 {[%clk
0:04:16.8]} 14... f6 {[%clk 0:03:51.1]} 15. Nf2 {[%clk 0:04:12.2]} 15... Rb8
{[%clk 0:03:38.2]} 16. Kb1 {[%clk 0:04:04]} 16... Qe8 {[%clk 0:03:37.1]} 17. Nb5
{[%clk 0:03:54.8]} 17... Rf7 {[%clk 0:02:51.5]} 18. Rc1 {[%clk 0:03:42.5]} 18...
b6 {[%clk 0:02:48.5]} 19. Ka1 {[%clk 0:03:36.6]} 19... Bf8 {[%clk 0:02:45.9]}
20. Nd3 {[%clk 0:03:18.4]} 20... Nc5 {[%clk 0:02:37.4]} 21. Nxc5 {[%clk
0:03:12]} 21... bxc5 {[%clk 0:02:36]} 22. Nxc7 {[%clk 0:03:10.4]} 22... Qd8
{[%clk 0:02:25.4]} 23. Nb5 {[%clk 0:03:03.2]} 23... Be8 {[%clk 0:02:20.2]} 24.
Rc3 {[%clk 0:02:58.8]} 24... Rfb7 {[%clk 0:02:18.9]} 25. Ra3 {[%clk 0:02:45]}
25... Ra8 {[%clk 0:02:11.3]} 26. Qc2 {[%clk 0:02:39.2]} 26... Qa5 {[%clk
0:02:10.1]} 27. Bd2 {[%clk 0:02:30.2]} 27... Qa6 {[%clk 0:02:08.2]} 28. b3
{[%clk 0:02:14.9]} 28... axb3 {[%clk 0:01:43.8]} 29. Rxa6 {[%clk 0:02:08.7]} 1-0

[Event "Live Chess"]
[Site "Chess.com"]
[Date "2023.05.20"]
[Round "-"]
[White "SiDebanks"]
[Black "lightningorderyt"]
[Result "1-0"]
[WhiteElo "1357"]
[BlackElo "522"]
[TimeControl "300"]
[EndTime "13:50:30 PDT"]
[Termination "SiDebanks won by checkmate"]

1. d4 {[%clk 0:04:57.8]} 1... d5 {[%clk 0:04:58.1]} 2. Nc3 {[%clk 0:04:57.7]}
2... Nf6 {[%clk 0:04:56.5]} 3. Bf4 {[%clk 0:04:54.9]} 3... Bf5 {[%clk
0:04:53.6]} 4. e3 {[%clk 0:04:53]} 4... Nbd7 {[%clk 0:04:44.7]} 5. Nb5 {[%clk
0:04:48.5]} 5... Rc8 {[%clk 0:04:27.3]} 6. Nxa7 {[%clk 0:04:39]} 6... Ra8 {[%clk
0:04:24.5]} 7. Nb5 {[%clk 0:04:37.2]} 7... Rc8 {[%clk 0:04:06.8]} 8. Nxc7+
{[%clk 0:04:28.2]} 8... Rxc7 {[%clk 0:04:05.8]} 9. Bxc7 {[%clk 0:04:27.4]} 9...
Qxc7 {[%clk 0:04:05.3]} 10. Bd3 {[%clk 0:04:24.2]} 10... e6 {[%clk 0:04:03]} 11.
Bxf5 {[%clk 0:04:22.6]} 11... exf5 {[%clk 0:04:02.6]} 12. Nf3 {[%clk 0:04:21.7]}
12... Bd6 {[%clk 0:03:56.1]} 13. Qd2 {[%clk 0:04:01.8]} 13... Qb6 {[%clk
0:03:48.2]} 14. c3 {[%clk 0:03:50]} 14... Ne4 {[%clk 0:03:39.3]} 15. Qc2 {[%clk
0:03:45.7]} 15... O-O {[%clk 0:03:18.8]} 16. Nd2 {[%clk 0:03:35.5]} 16... Ndf6
{[%clk 0:03:15.2]} 17. f3 {[%clk 0:03:31.1]} 17... Nxd2 {[%clk 0:03:08.2]} 18.
Qxd2 {[%clk 0:03:31]} 18... Re8 {[%clk 0:03:05.7]} 19. O-O {[%clk 0:03:28.3]}
19... Qc7 {[%clk 0:02:59.5]} 20. g3 {[%clk 0:03:19.7]} 20... f4 {[%clk
0:02:42.9]} 21. exf4 {[%clk 0:03:04.8]} 21... Nh5 {[%clk 0:02:36.6]} 22. Rae1
{[%clk 0:02:57.6]} 22... Re2 {[%clk 0:02:16.1]} 23. Qxe2 {[%clk 0:02:42.8]}
23... f5 {[%clk 0:01:55.8]} 24. Qe6+ {[%clk 0:02:33.4]} 24... Kh8 {[%clk
0:01:51]} 25. Qe8+ {[%clk 0:02:29]} 25... Bf8 {[%clk 0:01:47.6]} 26. Qxf8#
{[%clk 0:02:27.8]} 1-0